Cogmind - Beta 13 @@@ ROGUE MODE // 2024.04.01 @ 13:46:31 Player: weedlord420 Result: Self-destructed Performance ------------- Evolutions (1) 500 Regions Visited (2) 400 Robots Destroyed (28) 140 Value Destroyed (651) 651 Prototype IDs (2) 40 Alien Tech Used (0) 0 Bonus (0) 0 TOTAL SCORE: 1731 Bonus ------- None Cogmind --------- Core Integrity 351/400 Matter 261/300 Energy 15/100 System Corruption 0% Temperature Cool (0) Movement Core (50) Location -9/Materials Parts ------- > --- POWER (1) -------- (None) > --- PROPULSION (4) --- (None) > --- UTILITY (2) ------ (None) > --- WEAPON (2) ------- (None) > --- INVENTORY (5) ---- Light Ion Engine Hover Unit Hover Unit Weight Redist. System Signal Interpreter Peak State ------------ > --- POWER ------------ Light Nuclear Core > --- PROPULSION ------- Aluminum Leg Aluminum Leg > --- UTILITY ---------- Small Storage Unit Seismic Detector > --- WEAPON ----------- Small Laser Assault Rifle > --- INVENTORY -------- Light Ion Engine Light Ion Engine Aluminum Leg Aluminum Leg Heat Sink Signal Interpreter [Rating: 9] Favorites ----------- Power Light Ion Engine Engine Light Ion Engine Power Core Light Nuclear Core Propulsion Aluminum Leg Leg Aluminum Leg Hover Unit Hover Unit Utility Small Storage Unit Device Heat Sink Storage Small Storage Unit Weapon Light Assault Rifle Energy Gun Small Laser Ballistic Gun Light Assault Rifle Build | -11 -10 -9 ------- Run | Yrd Mat Mat Slots Evolved 2 | . . 2 Power . | . . . Propulsion 2 | . . 2 Utility . | . . . Weapon . | . . . Parts Attached 25 | 7 14 4 Power 3 | 1 2 . Engine 2 | 1 1 . Core 1 | . 1 . Reactor . | . . . Propulsion 11 | 2 6 3 Treads . | . . . Leg 8 | 2 6 . Wheel . | . . . Hover 3 | . . 3 Flight . | . . . Utility 4 | 2 1 1 Device 3 | 1 1 1 Storage 1 | 1 . . Processor . | . . . Hackware . | . . . Protection . | . . . Artifact . | . . . Weapon 7 | 2 5 . Energy Gun 1 | 1 . . Energy Cannon . | . . . Ballistic Gun 6 | 1 5 . Ballistic Cannon . | . . . Launcher . | . . . Special Weapon . | . . . Impact Weapon . | . . . Slashing Weapon . | . . . Piercing Weapon . | . . . Special Melee Weapon . | . . . Unidentified Prototypes . | . . . Parts Lost 9 | . 2 7 Power 2 | . 1 1 Propulsion 2 | . . 2 Utility 3 | . 1 2 Weapon 2 | . . 2 Highest Loss Streak 7 | . 1 7 To Critical Strikes . | . . . Average Slot Usage (%) 89 | . 90 66 Engine 6 | . 6 8 Core 5 | . 5 . Leg 26 | . 27 . Hover 1 | . . 20 Device 9 | . 9 8 Storage 13 | . 14 9 Energy Gun 3 | . 3 . Ballistic Gun 22 | . 22 19 Naked Turns 1 | . . 1 Heaviest Build 14 | 12 14 12 Greatest Support 20 | 20 20 18 Greatest Overweight (x) 3 | . 3 . Average Overweight (x) . | . . . Largest Inventory Capacity 8 | 8 8 8 Average Capacity 7 | 6 8 7 Most Carried 8 | 4 8 7 Average Carried 6 | . 6 5 Final Capacity 8 | 8 8 5 Final Carried 7 | 1 7 5 Class Distribution -------------------- 72% | Scavenger-Mutant 27% | Mutant Dominant Class ---------------- Scavenger-Mutant | -10/Materials Scavenger-Mutant | -9/Materials Resources | -11 -10 -9 ----------- Run | Yrd Mat Mat Matter Collected 657 | 235 422 . Remotely . | . . . Salvage Created 990 | 27 895 68 Parts 66 | 3 58 5 Haulers Intercepted 2 | . 2 . Recyclers Shooed 3 | . 3 . Parts Field Recycled . | . . . Retrieved Matter . | . . . Parts Self-Destructed . | . . . Prevented . | . . . Kills | -11 -10 -9 ------- Run | Yrd Mat Mat Combat Hostiles Destroyed 21 | . 19 2 Guns 20 | . 19 1 AOE 1 | . . 1 Classes Destroyed 6 | 1 5 . Tunneler 1 | 1 . . Hauler 2 | . 2 . Recycler 2 | . 2 . Watcher 2 | . 2 . Swarmer 6 | . 6 . Grunt 15 | . 13 2 Best Kill Streak 5 | 1 5 2 Combat Bots Only 5 | . 5 2 Max Kills in Single Turn 1 | 1 1 1 Gunslinging . | . . . Exploded 1 | . . 1 Melee . | . . . Uniques/NPCs Destroyed . | . . . Combat | -11 -10 -9 -------- Run | Yrd Mat Mat Hostile Shots Fired 132 | . 115 17 Missed 29 | . 26 3 Damage Taken 1223 | . 904 319 Core 218 | . 169 49 Absorbed by Shields 56 | . . 56 Core Remaining (%) 66 | 100 32 . Volleys Fired 130 | 2 116 12 Largest 2 | 2 2 2 Hottest 60 | 60 60 40 Shots Fired 248 | 4 220 24 Gun 248 | 4 220 24 Cannon . | . . . Launcher . | . . . Special . | . . . Kinetic 209 | 2 183 24 Thermal 39 | 2 37 . Explosive . | . . . Electromagnetic . | . . . Robot Hit Streak 18 | 1 18 9 Robot Miss Streak 5 | 1 5 2 Penetration Max . | . . . Secondary Targets . | . . . Shots Hit Robots 164 | 1 146 17 Core Hits 55 | 1 50 4 Critical Kills 1 | . 1 . Critical Parts Destroyed 1 | . 1 . Critical Strikes 2 | . 2 . Destroy 2 | . 2 . Melee Attacks . | . . . Impact . | . . . Slashing . | . . . Piercing . | . . . Sneak Attacks . | . . . Combat Hostiles . | . . . Follow-up Attacks . | . . . Damage Inflicted 1573 | 22 1411 140 Guns 1573 | 22 1411 140 Cannons . | . . . Explosions . | . . . Melee . | . . . Ramming . | . . . Kinetic 1240 | 10 1090 140 Thermal 333 | 12 321 . Explosive . | . . . Electromagnetic . | . . . Impact . | . . . Slashing . | . . . Piercing . | . . . Highest Corruption . | . . . Average Corruption . | . . . Corruption Purged . | . . . Corruption Blocked . | . . . Overload Shots . | . . . Overflow Damage . | . . . Projectiles . | . . . Explosions . | . . . Melee . | . . . Knockbacks . | . . . Impact . | . . . Kinetic . | . . . Secondary . | . . . Self-Inflicted Damage . | . . . Shots . | . . . Rammed . | . . . Targets Rammed . | . . . Kicked . | . . . Crushed . | . . . Highest Temperature 132 | . 132 9 Average Temperature 26 | . 27 6 Received Heat Transfer 444 | . 372 72 Siege Activations . | . . . Robots Corrupted . | . . . Combat Hostiles . | . . . Parts Fried . | . . . Impact Corruptions . | . . . Robots Melted . | . . . Combat Hostiles . | . . . Parts Melted . | . . . Heat Transferred 750 | 25 725 . Parts Sabotaged . | . . . Parts Stolen . | . . . Parts Stripped . | . . . Power Chain Reactions . | . . . Alert | -11 -10 -9 ------- Run | Yrd Mat Mat Peak Influence 321 | 5 321 139 Initial 99 | . 3 99 Average 169 | . 182 114 Maximum Alert Level 1 | . 1 . Low Security (%) 59 | 100 54 100 Level 1 40 | . 45 . Level 2 . | . . . Level 3 . | . . . Level 4 . | . . . Level 5 . | . . . High Security . | . . . Max Security . | . . . Squads Dispatched 5 | . 4 1 Investigation 4 | . 3 1 Extermination . | . . . Reinforcement 1 | . 1 . Assault . | . . . Garrison . | . . . Intercept . | . . . Searches Triggered . | . . . Construction Impeded . | . . . Haulers Reinforced . | . . . Active Scanning Responses . | . . . Cargo Convoy Interrupts . | . . . Stealth | -11 -10 -9 --------- Run | Yrd Mat Mat Distress Signals 4 | . 3 1 Communications Jammed . | . . . Distress Signals . | . . . Times Spotted 37 | . 29 8 Peak Tracking Total 6 | . 6 6 Tactical Retreats 3 | . 2 1 Traps | -11 -10 -9 ------- Run | Yrd Mat Mat Traps Triggered 4 | . 3 1 Indirectly . | . . . Trap Hack Attempts . | . . . Triggered . | . . . Disarmed . | . . . Reprogrammed . | . . . Reused . | . . . Traps Extracted . | . . . Installed . | . . . Triggered . | . . . Machines | -11 -10 -9 ---------- Run | Yrd Mat Mat Machines Disabled . | . . . Max in Single Turn . | . . . Machines Repaired . | . . . Machines Dismantled . | . . . Machines Sabotaged . | . . . Overloaded Fab Kills . | . . . Hacking | -11 -10 -9 --------- Run | Yrd Mat Mat Machines Accessed 2 | . 2 . Terminals 2 | . 2 . Fabricators . | . . . Repair Stations . | . . . Recycling Units . | . . . Scanalyzers . | . . . Garrison Access . | . . . Total Hacks 9 | . 9 . Successful 4 | . 4 . Failed 5 | . 5 . Catastrophic 1 | . 1 . Database Lockouts . | . . . Manual . | . . . Terminals 9 | . 9 . Fabricators . | . . . Repair Stations . | . . . Recycling Units . | . . . Scanalyzers . | . . . Garrison Access . | . . . Terminal Hacks 4 | . 4 . Prototype ID Bank 1 | . 1 . Emergency Access Points 1 | . 1 . Locate Traps 1 | . 1 . Zone Layout 1 | . 1 . Fabricator Hacks . | . . . Repair Station Hacks . | . . . Recycling Unit Hacks . | . . . Scanalyzer . | . . . Garrison Access Hacks . | . . . Unauthorized Hacks . | . . . Terminals . | . . . Fabricators . | . . . Repair Stations . | . . . Recycling Units . | . . . Scanalyzers . | . . . Garrison Access . | . . . Data Cores Recovered . | . . . Used . | . . . Hacking Detections 2 | . 2 . Full Trace Events 1 | . 1 . Feedback Events . | . . . Feedback Blocked . | . . . Robot Schematics Acquired . | . . . Robots Built . | . . . Authchips . | . . . Time . | . . . Total Robot Build Rating . | . . . Part Schematics Acquired . | . . . Parts Built . | . . . Authchips . | . . . Time . | . . . Total Part Build Rating . | . . . Parts Repaired . | . . . Time . | . . . Parts Recycled . | . . . Recycled Matter . | . . . Retrieved Matter . | . . . Retrieved Components . | . . . Parts Scanalyzed . | . . . Part Schematics Acquired . | . . . Parts Damaged . | . . . Bothacking | -11 -10 -9 ------------ Run | Yrd Mat Mat Used RIF Installer . | . . . Robots Hacked . | . . . Non-combat . | . . . Combat . | . . . Robot Hacks Applied . | . . . Relay Couplers Released . | . . . Fabnet Peak Effective % . | . . . Robots Rewired . | . . . Allies Hacked . | . . . Hacks Repelled . | . . . Allies | -11 -10 -9 -------- Run | Yrd Mat Mat Total Allies . | . . . Largest Group . | . . . Highest-Rated Group . | . . . Highest-Rated Ally . | . . . Total Orders . | . . . Ally Attacks . | . . . Total Damage . | . . . Kills . | . . . Allies Corrupted . | . . . Allies Melted . | . . . Intel | -11 -10 -9 ------- Run | Yrd Mat Mat Robot Analysis Total . | . . . Derelict Logs Recovered . | . . . Drone Launches . | . . . Drone Recoveries . | . . . Exploration | -11 -10 -9 ------------- Run | Yrd Mat Mat Turns Passed 1339 | 67 1194 78 Spaces Moved 767 | 48 657 62 Core 17 | 15 2 . Treads . | . . . Legs 688 | 33 655 . Wheels . | . . . Hover 62 | . . 62 Flight . | . . . Fastest Speed 50 | 50 120 52 Average Speed 113 | 98 120 54 Slowest Speed 200 | 120 200 56 Overloaded Moves . | . . . Propulsion Burnouts . | . . . Robots Hopped . | . . . Cave-ins Triggered . | . . . Exploration Rate (%) 33 | 3 88 10 Regions Visited 2 Branch Regions . Pre-discovered Areas . | . . . Known Exits Taken . | . . . Unknown Exits Taken 2 | 1 1 . Scrap Searched . | . . . Spaces Dug . | . . . Terrain Destroyed . | . . . Melee . | . . . Projectile . | . . . AOE . | . . . Terrain Rammed . | . . . Walls Destroyed . | . . . Machines Disabled . | . . . Actions | -11 -10 -9 --------- Run | Yrd Mat Mat Total 1022 | 64 871 87 Wait 64 | . 60 4 Move 765 | 47 656 62 Hop . | . . . Pick Up 24 | 8 15 1 Fast Attach 2 | . 2 . Attach 12 | 7 3 2 Detach 2 | . . 2 Swap 11 | . 9 2 Drop 12 | . 10 2 Fire 130 | 2 116 12 Melee . | . . . Ram . | . . . Kick . | . . . Crush . | . . . Escape Stasis . | . . . Rewire . | . . . Trap . | . . . Miscellaneous . | . . . Route ------- -11/Scrapyard -10/Materials (discovered 3 exits: [*Mat x3]) -9/Materials History --------- Turn | Location | Event 4 | -11/Scrapyard | Discovered new exit (range 16) 68 | -11/Scrapyard | Entered Materials 312 | -10/Materials | Build established: Mutant 429 | -10/Materials | Discovered new exit (range 14) 704 | -10/Materials | Build established: Scavenger-Mutant 732 | -10/Materials | Core integrity fell below 50% 828 | -10/Materials | Discovered new exit (range 16) 1190 | -10/Materials | Discovered new exit (range 9) 1262 | -10/Materials | Entered another Materials area 1262 | -9/Materials | Evolved 2 slots: Propulsion x2 1340 | -9/Materials | Self-destructed Last Messages --------------- Acquired Shield Generator. T-07 Excavator is excavating. Triggered Alarm Trap. An alarm sounds. ALERT: Alarm triggered, dispatching investigation squad. W-16 Scout sends out distress signal. U-05 Engineer lays Concrete. Lgt. Ion Engine destroyed. G-34 Mercenary destroyed. Fusion Modulator explodes. Lgt. Assault Rifle destroyed. Hover Unit destroyed. Shield Generator destroyed. G-47 Trooper destroyed. Y-45 Defender destroyed. G-34 Mercenary destroyed. Sml. Storage Unit destroyed. Lgt. Assault Rifle destroyed. Y-45 Defender destroyed. Map ----- +----------------------------------------------------+ | ?????????????????????????????????????????????????? | | ?????????????????????????????????????????????????? | | ?????????????????????????????????????????????????? | | ?????????????????????????????????????????????????? | | ?????????????????????????????????????????????????? | | ?????????????????????????????????????????????????? | | ?????????????????????????????????????????????????? | | ?????????????????????????????????????????????????? | | ?????????????????????????????????????????????????? | | ?????????????????????????????????????????????????? | | ?????????????????????????????????????????????????? | | ?????????????????????????????????????????????????? | | ??????????????????????????? ???????????????????? | | ??????????????????????????? #??????????????????? | | ??????????????????????????? #??????????????????? | | ??????????????????????????? #??????????????????? | | ?????????????????######?### #??????????????????? | | ?????????????????? ? #??????????????????? | | ??????????????????? ? #??????????????????? | | ???????????????????? #######????????????? | | ????????????????????? ?????????????? | | ??????????????????####;;#;# ???????????????? | | ?????????????????##;;;;;;;; m?????????????????? | | ?????????????????# ; #??????????????????? | | ?????????????????# #??????????????????? | | ?????????????????# @ [g #??????????????????? | | ?????????????????# [%g #??????????????????? | | ?????????????????# %* #??????????????????? | | ?????????????????# #??????????????????? | | ?????????????????# % #??????????????????? | | ?????????????????# = #??????????????????? | | ?????????????????# ;; #??????????????????? | | ?????????????????##;;;;;;;;; #??????????????????? | | ??????????????????### ; ### #??????????????????? | | ????????????????????#####??# #??????????+???????? | | ???????????????????????????# #?????????# #??????? | | ???????????????????????????#w #????????? ??????? | | ???????????????????????????# #????????? ??????? | | ???????????????????????????# #????????? ??????? | | ???????????????????????????# ###??????? ??????? | | ???????????????????????????# #??????? ??????? | | ???????????????????????????# #???????# #??????? | | ???????????????????????????# #???????# #??????? | | ???????????????????????????# #???????# #??????? | | ???????????????????????????# #########+#??????? | | ???????????????????????????# ## #??????? | | ??????????????????????? ???# ## """#??????? | | ??????????????????###### ### # """#??????? | | ??????????????? # ! """#??????? | | ??????????????? + #??????? | +----------------------------------------------------+ Best States ------------- Heat Dissipation 35 Energy Generation 14 Energy Capacity 160 Matter Stores 300 Matter Capacity 300 Sight Range 16 Terrain Scan Density 10 Evasion (%) 55 Item Schematics ----------------- None Robot Schematics ------------------ None Fabricated ------------ Nothing Alien Tech Used ----------------- None Achievements -------------- None Challenges ------------ None Game ------ Seed LayeredCoreWand Manual? 0 Play Time 00:09:19 Cumulative 13.6 hours Start 2024.04.01 @ 13:38:03 End 2024.04.01 @ 13:46:31 Sessions 1 Manual Loads 0 Difficulty Rogue Special Mode None Game No. 30 Rogue 29 Adventurer 1 Explorer 0 Win Type - Total 0 Types 0/0/0/0/0/0/0/0/0 Lore% 8 Gallery% 17 Achievement% 17 Wizard Run 0 Options --------- Layout 1 ASCII 0 Keyboard 0 Movement Mouse Keybinds 0 Fullscreen 2 Font 24/Terminus Map View 50x35 Zoom Use 0% Tactical HUD 0 Map Filters NONE Filters NONE Steam 1 RUN: 0bc3f12a-fa3d-4d5c-9a46-491762fc03a1